fUSD/lending_fUSD_20260214
["ID","MTS","AMOUNT","RATE_DAILY","PERIOD"]
[405375583,1771093981148,-500.0,0.00043013,120]
[405375584,1771093981158,-538.62,0.00043013,120]
[405375585,1771093981168,-500.0,0.00043013,120]
[405375586,1771093981178,-556.88,0.00043013,120]
[405375587,1771093981188,-561.54,0.00043013,60]
[405375588,1771093981197,-1233.52,0.00043013,120]
[405375589,1771093981207,-5585.82,0.00043013,120]
[405375590,1771093981217,-540.9,0.00043013,2]
[405375591,1771093981226,-524.45,0.00043013,120]
[405375592,1771093981236,-711.16,0.00043013,120]
[405375593,1771093981245,-885.44,0.00043013,120]
[405375594,1771093981255,-500.0,0.00043013,120]
[405375595,1771093981264,-500.0,0.00043013,99]
[405375596,1771093981274,-2840.08,0.00043013,90]
[405375597,1771093981284,-500.0,0.00043013,120]
[405375598,1771093981293,-500.0,0.00043013,120]
[405375599,1771093981303,-500.06,0.00043013,120]
[405375600,1771093981313,-500.0,0.00043013,120]
[405375601,1771093981323,-3032.83,0.00043013,120]
[405375602,1771093981333,-3433.22,0.00043013,120]
[405375603,1771093981343,-631.89,0.00043013,120]
[405375604,1771093981353,-500.0,0.00043013,120]
[405375605,1771093981363,-500.0,0.00043013,120]
[405375606,1771093981373,-3775.51,0.00043013,120]
[405375607,1771093981383,-1984.08,0.00043013,120]
[405375608,1771093981393,-3890.45,0.00043013,120]
[405375609,1771093981403,-4088.99,0.00043013,120]
[405375610,1771093981414,-500.0,0.00043013,120]
[405375611,1771093981427,-500.0,0.00043013,120]
[405375612,1771093981437,-500.0,0.00043013,120]
[405375613,1771093981446,-870.9,0.00043013,120]
[405375614,1771093981456,-500.0,0.00043013,2]
[405375615,1771093981466,-710.66,0.00043013,120]
[405375616,1771093981476,-500.0,0.00043013,120]
[405375617,1771093981486,-3872.17,0.00043013,120]
[405375618,1771093981495,-500.0,0.00043013,120]
[405375619,1771093981504,-577.68,0.00043013,120]
[405375620,1771093981514,-382.28420543,0.00043013,120]
[405375621,1771093981523,-452.87,0.00043013,120]
[405375622,1771093981533,-500.0,0.00043013,120]
[405375623,1771093981543,-5100.22,0.00043013,120]
[405375624,1771093981555,-10810.91,0.00043013,120]
[405375625,1771093981565,-4011.27,0.00043013,120]
[405375626,1771093981575,-4569.78,0.00043013,120]
[405375627,1771093981585,-500.0,0.00043013,120]
[405375628,1771093981595,-3982.43,0.00043013,120]
[405375629,1771093981605,-500.0,0.00043013,120]
[405375630,1771093981616,-945.81,0.00043013,120]
[405375631,1771093981626,-5326.62,0.00043013,120]
[405375632,1771093981635,-1374.78,0.00043013,120]
[405375633,1771093981645,-4059.63,0.00043013,120]
[405375634,1771093981655,-500.0,0.00043013,120]
[405375635,1771093981665,-3578.35,0.00043013,120]
[405375636,1771093981674,-5981.56,0.00043013,120]
[405375637,1771093981683,-503.9911558,0.00043013,120]
[405375638,1771093981693,-5562.93,0.00043013,120]
[405375639,1771093981703,-3292.7,0.00043013,120]
[405375640,1771093981712,-3804.91,0.00043013,120]
[405375641,1771093981723,-10011.46,0.00043013,120]
[405375642,1771093981812,-177.9323703,0.00043013,120]
[405375643,1771093981821,-5698.9,0.00043013,120]
[405375644,1771093981830,-618.1,0.00043013,120]
[405375645,1771093981839,-500.0,0.00043013,120]
[405375646,1771093981850,-500.0,0.00043013,120]
[405375647,1771093981859,-3635.6,0.00043013,120]
[405375648,1771093981869,-4860.79,0.00043013,120]
[405375649,1771093981879,-585.84,0.00043013,120]
[405375650,1771093981888,-5822.07,0.00043013,120]
[405375651,1771093981897,-8145.86,0.00043013,120]
[405375652,1771093981907,-3702.56,0.00043013,120]
[405375653,1771093981916,-1020.67,0.00043013,120]
[405375654,1771093981926,-579.77,0.00043013,120]
[405375655,1771093981935,-2809.91,0.00043013,15]
[405375656,1771093981946,-692.65,0.00043013,120]
[405375657,1771093981956,-835.77,0.00043013,120]
[405375658,1771093981966,-500.0,0.00043013,120]
[405375659,1771093981975,-4321.01,0.00043013,120]
[405375660,1771093981985,-400.0,0.00043013,120]
[405375661,1771093981994,-500.0,0.00043013,120]
[405375662,1771093982004,-11996.33,0.00043013,120]
[405375663,1771093982013,-5541.84,0.00043013,120]
[405375664,1771093982023,-4068.1,0.00043013,120]
[405375665,1771093982032,-3498.65,0.00043013,120]
[405375666,1771093982041,-4772.89,0.00043013,120]
[405375667,1771093982050,-3599.74,0.00043013,120]
[405375668,1771093982059,-3590.36,0.00043013,120]
[405375669,1771093982068,-555.53,0.00043013,120]
[405375670,1771093982077,-3986.91,0.00043013,120]
[405375671,1771093982087,-602.84,0.00043013,30]
[405375672,1771093982096,-4500.2,0.00043013,120]
[405375673,1771093982105,-500.0,0.00043013,120]
[405375674,1771093982115,-500.0,0.00043013,120]
[405375675,1771093982124,-17167.11,0.00043013,15]
[405375676,1771093982133,-500.0,0.00043013,120]
[405375677,1771093982142,-6987.05,0.00043013,120]
[405375678,1771093982152,-792.61,0.00043013,120]
[405375679,1771093982162,-3809.76,0.00043013,120]
[405375680,1771093982171,-1872.91,0.00043013,120]
[405375681,1771093982180,-751.97,0.00043013,120]
[405375682,1771093982190,-4301.09,0.00043013,120]
[405375683,1771093982199,-500.0,0.00043013,120]
[405375684,1771093982208,-500.0,0.00043013,120]
[405375685,1771093982218,-49453.89,0.00043013,120]
[405375686,1771093982227,-514.79,0.00043013,120]
[405375687,1771093982236,-522.72,0.00043013,120]
[405375688,1771093982250,-3592.54,0.00043013,120]
[405375689,1771093982260,-6816.69,0.00043013,120]
[405375690,1771093982270,-6877.26,0.00043013,120]
[405375691,1771093982279,-500.0,0.00043013,30]
[405375692,1771093982289,-3548.79,0.00043013,120]
[405375693,1771093982299,-643.83,0.00043013,120]
[405375694,1771093982309,-5429.53,0.00043013,120]
[405375695,1771093982320,-4648.43,0.00043013,120]
[405375696,1771093982330,-378.11955966,0.00043013,120]
[405375697,1771093982341,-685.71,0.00043013,120]
[405375698,1771093982351,-500.0,0.00043013,120]
[405375699,1771093982362,-500.0,0.00043013,120]
[405375700,1771093982373,-1668.59,0.00043013,120]
[405375701,1771093982383,-622.0,0.00043013,120]
[405375702,1771093982396,-500.0,0.00043013,120]
[405375703,1771093982408,-4113.81,0.00043013,120]
[405375704,1771093982422,-735.58,0.00043013,120]
[405375705,1771093982432,-500.0,0.00043013,120]
[405375706,1771093982442,-1564.16,0.00043013,120]
[405375707,1771093982451,-678.21,0.00043013,120]
[405375708,1771093982461,-2515.75,0.00043013,120]
[405375709,1771093982470,-4400.86,0.00043013,120]
[405375710,1771093982480,-579.75,0.00043013,120]
[405375711,1771093982489,-798.86,0.00043013,120]
[405375712,1771093982500,-1141.19,0.00043013,120]
[405375713,1771093982510,-995.04,0.00043013,120]
[405375714,1771093982519,-9716.73,0.00043013,120]
[405375715,1771093982528,-4640.07,0.00043013,120]
[405375716,1771093982538,-1000.0,0.00043015,120]
[405375717,1771093982548,-1521.2544044,0.00043015,120]
[405375718,1771093982558,-150.0,0.00043038,30]
[405375719,1771093982568,-1061.84790314,0.00043038,30]
[405375720,1771093982577,-150.0,0.00043038,30]
[405375721,1771093982586,-3941.19267814,0.00043038,30]
[405375722,1771093982595,-152.7,0.00043068,120]
[405375723,1771093982605,-150.0,0.00043094,30]
[405375724,1771093982616,-217.6473608,0.00043094,30]
[405375725,1771093982627,-573.11525758,0.00043094,30]
[405375726,1771093982638,-150.0,0.00043094,30]
[405375727,1771093982647,-573.11525758,0.00043094,30]
[405375728,1771093982658,-150.0,0.00043094,30]
[405375729,1771093982668,-150.0,0.00043094,30]
[405375730,1771093982680,-152.12,0.00043095,120]
[405375731,1771093982690,-223.65605596,0.00043098,15]
[405375732,1771093982701,-223.65605593,0.00043098,15]
[405375733,1771093982712,-223.65605593,0.00043098,15]
[405375734,1771093982724,-2918.574644,0.00043115,7]
[405375735,1771093982735,-1478.665706,0.00043115,7]
[405375736,1771093982745,-661.64,0.00043123,120]
[405375737,1771093982755,-150.0,0.00043138,120]
[405375738,1771093982765,-1999.0,0.0004315,120]
[405375739,1771093982775,-152.12,0.00043195,120]
[405375740,1771093982786,-152.0,0.000432,120]
[405375741,1771093982797,-5000000.0,0.0004321,120]
[405375742,1771093982807,-263.8387,0.0004322,7]
[405375743,1771093982816,-105263.76957873,0.00043221,30]
[405375744,1771093982826,-661.64,0.0004326,120]
[405375745,1771093982836,-151.0,0.00043282,10]
[405375746,1771093982845,-151.0,0.00043282,10]
[405375747,1771093982855,-151.0,0.00043282,10]
[405375748,1771093982864,-151.0,0.00043282,10]
[405375749,1771093982876,-151.0,0.00043282,10]
[405375750,1771093982885,-151.0,0.00043282,10]
[405375751,1771093982895,-151.0,0.00043282,10]
[405375752,1771093982904,-151.0,0.00043282,10]
[405375753,1771093982914,-151.0,0.00043282,10]
[405375754,1771093982925,-151.0,0.00043282,10]
[405375755,1771093982934,-151.0,0.00043282,10]
[405375756,1771093982943,-229.0,0.00043282,10]
[405375757,1771093982953,-500.0,0.00043287,120]
[405375758,1771093982962,-500.0,0.00043287,120]
[405375759,1771093982972,-500.0,0.00043287,120]
[405375760,1771093982981,-439.29058228,0.00043287,120]
[405375761,1771093982991,-500.0,0.00043287,120]
[405375762,1771093983000,-534.48004276,0.00043287,120]
[405375763,1771093983011,-409.61161021,0.00043287,120]
[405375764,1771093983020,-2236.17,0.00043287,120]
[405375765,1771093983030,-500.0,0.00043287,120]
[405375766,1771093983040,-1499.27,0.00043287,120]
[405375767,1771093983051,-679.39,0.00043287,120]
[405375768,1771093983061,-530.55,0.00043287,120]
[405375769,1771093983071,-450.909112,0.00043287,120]
[405375770,1771093983080,-425.12,0.00043287,2]
[405375771,1771093983090,-500.0,0.00043287,120]
[405375772,1771093983337,-500.0,0.00043287,120]
[405375773,1771093983381,-3818.35,0.00043287,120]
[405375774,1771093983391,-500.0,0.00043287,120]
[405375775,1771093983401,-1478.52,0.00043287,120]
[405375776,1771093983411,-500.0,0.00043287,120]
[405375777,1771093983422,-556.97,0.00043287,120]
[405375778,1771093983432,-500.0,0.00043287,120]
[405375779,1771093983443,-566.32642767,0.00043287,120]
[405375780,1771093983452,-500.0,0.00043287,120]
[405375781,1771093983463,-3459.63,0.00043287,120]
[405375782,1771093983473,-1007.77,0.00043287,120]
[405375783,1771093983483,-1366.15,0.00043287,2]
[405375784,1771093983494,-1397.34,0.00043287,120]
[405375785,1771093983504,-581.99,0.00043287,120]
[405375786,1771093983514,-500.0,0.00043287,120]
[405375787,1771093983524,-3781.3,0.00043287,120]
[405375788,1771093983534,-500.0,0.00043287,120]
[405375789,1771093983544,-500.0,0.00043287,120]
[405375790,1771093983555,-426.14159008,0.00043287,120]
[405375791,1771093983565,-500.0,0.00043287,120]
[405375792,1771093983575,-665.99,0.00043287,120]
[405375793,1771093983586,-500.0,0.00043287,120]
[405375794,1771093983597,-500.0,0.00043287,120]
[405375795,1771093983607,-512.2,0.00043287,120]
[405375796,1771093983619,-516.7,0.00043287,120]
[405375797,1771093983629,-500.0,0.00043287,120]
[405375798,1771093983639,-500.0,0.00043287,120]
[405375799,1771093983649,-3417.97,0.00043287,120]
[405375800,1771093983659,-5149.98,0.00043287,120]
[405375801,1771093983669,-3403.19,0.00043287,120]
[405375802,1771093983679,-500.0,0.00043287,120]
[405375803,1771093983689,-538.62,0.00043287,120]
[405375804,1771093983699,-500.0,0.00043287,120]
[405375805,1771093983709,-556.88,0.00043287,120]
[405375806,1771093983720,-561.54,0.00043287,60]
[405375807,1771093983730,-1233.52,0.00043287,120]
[405375808,1771093983740,-5585.82,0.00043287,120]
[405375809,1771093983750,-540.9,0.00043287,2]
[405375810,1771093983761,-524.45,0.00043287,120]
[405375811,1771093983770,-711.16,0.00043287,120]
[405375812,1771093983780,-885.44,0.00043287,120]
[405375813,1771093983790,-269.22794929,0.00043287,120]
[405375814,1771093983800,-490.40119452,0.00043287,99]
[405375815,1771093983809,-2840.08,0.00043287,90]
[405375816,1771093983819,-500.0,0.00043287,120]
[405375817,1771093983829,-500.0,0.00043287,120]
[405375818,1771093983839,-500.06,0.00043287,120]
[405375819,1771093983848,-500.0,0.00043287,120]
[405375820,1771093983858,-3032.83,0.00043287,120]
[405375821,1771093983868,-3433.22,0.00043287,120]
[405375822,1771093983878,-631.89,0.00043287,120]
[405375823,1771093983888,-500.0,0.00043287,120]
[405375824,1771093983898,-500.0,0.00043287,120]
[405375825,1771093983908,-3775.51,0.00043287,120]
[405375826,1771093983919,-1984.08,0.00043287,120]
[405375827,1771093983928,-3890.45,0.00043287,120]
[405375828,1771093983939,-4088.99,0.00043287,120]
[405375829,1771093983949,-314.80369327,0.00043287,120]
[405375830,1771093983958,-500.0,0.00043287,120]
[405375831,1771093983968,-500.0,0.00043287,120]
[405375832,1771093983978,-870.9,0.00043287,120]
[405375833,1771093983988,-197.3561914,0.00043287,2]
[405375834,1771093983998,-710.66,0.00043287,120]
[405375835,1771093984008,-217.67210897,0.00043287,120]
[405375836,1771093984018,-3872.17,0.00043287,120]
[405375837,1771093984028,-313.289928,0.00043287,120]
[405375838,1771093984037,-577.68,0.00043287,120]
[405375839,1771093984047,-500.0,0.00043287,120]
[405375840,1771093984057,-5100.22,0.00043287,120]
[405375841,1771093984067,-10810.91,0.00043287,120]
[405375842,1771093984076,-4011.27,0.00043287,120]
[405375843,1771093984086,-4569.78,0.00043287,120]
[405375844,1771093984095,-500.0,0.00043287,120]
[405375845,1771093984104,-3982.43,0.00043287,120]
[405375846,1771093984114,-500.0,0.00043287,120]
[405375847,1771093984123,-945.81,0.00043287,120]
[405375848,1771093984132,-5326.62,0.00043287,120]
[405375849,1771093984143,-1374.78,0.00043287,120]
[405375850,1771093984153,-4059.63,0.00043287,120]
[405375851,1771093984162,-500.0,0.00043287,120]
[405375852,1771093984172,-3578.35,0.00043287,120]
[405375853,1771093984182,-5981.56,0.00043287,120]
[405375854,1771093984191,-5562.93,0.00043287,120]
[405375855,1771093984201,-3292.7,0.00043287,120]
[405375856,1771093984210,-3804.91,0.00043287,120]
[405375857,1771093984220,-10011.46,0.00043287,120]
[405375858,1771093984229,-5698.9,0.00043287,120]
[405375859,1771093984239,-618.1,0.00043287,120]
[405375860,1771093984248,-261.40476148,0.00043287,120]
[405375861,1771093984258,-500.0,0.00043287,120]
[405375862,1771093984267,-3635.6,0.00043287,120]
[405375863,1771093984277,-4860.79,0.00043287,120]
[405375864,1771093984286,-585.84,0.00043287,120]
[405375865,1771093984296,-5822.07,0.00043287,120]
[405375866,1771093984307,-8145.86,0.00043287,120]
[405375867,1771093984317,-3702.56,0.00043287,120]
[405375868,1771093984328,-1020.67,0.00043287,120]
[405375869,1771093984337,-579.77,0.00043287,120]
[405375870,1771093984347,-2809.91,0.00043287,15]
[405375871,1771093984357,-692.65,0.00043287,120]
[405375872,1771093984368,-835.77,0.00043287,120]
[405375873,1771093984377,-536.52696533,0.00043287,120]
[405375874,1771093984386,-4321.01,0.00043287,120]
[405375875,1771093984396,-400.0,0.00043287,120]
[405375876,1771093984406,-500.0,0.00043287,120]
[405375877,1771093984417,-11996.33,0.00043287,120]
[405375878,1771093984431,-5541.84,0.00043287,120]
[405375879,1771093984441,-4068.1,0.00043287,120]
[405375880,1771093984452,-3498.65,0.00043287,120]
[405375881,1771093984462,-4772.89,0.00043287,120]
[405375882,1771093984471,-3599.74,0.00043287,120]
[405375883,1771093984481,-3590.36,0.00043287,120]
[405375884,1771093984491,-555.53,0.00043287,120]
[405375885,1771093984504,-602.84,0.00043287,30]
[405375886,1771093984513,-3986.91,0.00043287,120]
[405375887,1771093984523,-4500.2,0.00043287,120]
[405375888,1771093984533,-500.0,0.00043287,120]
[405375889,1771093984544,-500.0,0.00043287,120]
[405375890,1771093984554,-17167.11,0.00043287,15]
[405375891,1771093984564,-500.0,0.00043287,120]
[405375892,1771093984576,-6987.05,0.00043287,120]
[405375893,1771093984587,-792.61,0.00043287,120]
[405375894,1771093984600,-3809.76,0.00043287,120]
[405375895,1771093984611,-1872.91,0.00043287,120]
[405375896,1771093984621,-751.97,0.00043287,120]
[405375897,1771093984631,-4301.09,0.00043287,120]
[405375898,1771093984643,-365.01395202,0.00043287,120]
[405375899,1771093984652,-500.0,0.00043287,120]
[405375900,1771093984663,-49453.89,0.00043287,120]
[405375901,1771093984674,-514.79,0.00043287,120]
[405375902,1771093984688,-522.72,0.00043287,120]
[405375903,1771093984698,-3592.54,0.00043287,120]
[405375904,1771093984709,-6816.69,0.00043287,120]
[405375905,1771093984719,-6877.26,0.00043287,120]
[405375906,1771093984730,-500.0,0.00043287,30]
[405375907,1771093984740,-3548.79,0.00043287,120]
[405375908,1771093984752,-643.83,0.00043287,120]
[405375909,1771093984762,-5429.53,0.00043287,120]
[405375910,1771093984773,-4648.43,0.00043287,120]
[405375911,1771093984783,-685.71,0.00043287,120]
[405375912,1771093984792,-500.0,0.00043287,120]
[405375913,1771093984802,-500.0,0.00043287,120]
[405375914,1771093984811,-1668.59,0.00043287,120]
[405375915,1771093984820,-622.0,0.00043287,120]
[405375916,1771093984830,-191.76,0.00043287,120]
[405375917,1771093984839,-4113.81,0.00043287,120]
[405375918,1771093984848,-735.58,0.00043287,120]
[405375919,1771093984859,-500.0,0.00043287,120]
[405375920,1771093984868,-1564.16,0.00043287,120]
[405375921,1771093984877,-678.21,0.00043287,120]
[405375922,1771093984888,-2515.75,0.00043287,120]
[405375923,1771093984899,-4400.86,0.00043287,120]
[405375924,1771093984908,-579.75,0.00043287,120]
[405375925,1771093984917,-798.86,0.00043287,120]
[405375926,1771093984927,-1141.19,0.00043287,120]
[405375927,1771093984936,-995.04,0.00043287,120]
[405375928,1771093984946,-9716.73,0.00043287,120]
[405375929,1771093984955,-4640.07,0.00043287,120]
[405375930,1771093984965,-10000.0,0.00043288,2]
[405375931,1771093984974,-341.36785526,0.00043288,30]
[405375932,1771093984984,-500.0,0.00043288,120]
[405375933,1771093984993,-516.22633989,0.00043288,120]
[405375934,1771093985002,-151.34313706,0.00043288,120]
[405375935,1771093985012,-150.0,0.00043288,120]
[405375936,1771093985022,-150.0,0.00043288,120]
[405375937,1771093985032,-150.0,0.00043288,120]
[405375938,1771093985041,-150.0,0.00043288,120]
[405375939,1771093985052,-237.21370664,0.00043288,120]
[405375940,1771093985061,-150.0,0.00043288,120]
[405375941,1771093985071,-150.0,0.00043288,120]
[405375942,1771093985081,-150.0,0.00043288,120]
[405375943,1771093985090,-150.0,0.00043288,120]
[405375944,1771093985100,-250.0,0.00043288,120]
[405375945,1771093985109,-150.0,0.00043288,120]
[405375946,1771093985119,-150.0,0.00043288,120]
[405375947,1771093985130,-150.0,0.00043288,120]
[405375948,1771093985139,-150.0,0.00043288,120]
[405375949,1771093985149,-150.0,0.00043288,120]
[405375950,1771093985160,-210.54421558,0.00043288,120]
[405375951,1771093985170,-500.0,0.00043288,120]
[405375952,1771093985181,-500.0,0.00043288,120]
[405375953,1771093985193,-303.18782677,0.00043288,120]
[405375954,1771093985204,-150.0,0.00043288,120]
[405375955,1771093985213,-150.0,0.00043288,120]
[405375956,1771093985223,-150.0,0.00043288,120]
[405375957,1771093985232,-150.0,0.00043288,120]
[405375958,1771093985241,-150.78248909,0.00043288,120]
[405375959,1771093985250,-252.78606868,0.00043288,120]
[405375960,1771093985259,-184.88352361,0.00043288,120]
[405375961,1771093985269,-160.974054,0.00043288,120]
[405375962,1771093985279,-500.0,0.00043288,120]
[405375963,1771093985288,-150.0,0.00043288,120]
[405375964,1771093985298,-500.0,0.00043288,120]
[405375965,1771093985307,-150.0,0.00043288,120]
[405375966,1771093985317,-500.0,0.00043288,120]
[405375967,1771093985326,-500.0,0.00043288,120]
[405375968,1771093985335,-154.02713301,0.00043288,120]
[405375969,1771093985344,-500.0,0.00043288,120]
[405375970,1771093985354,-500.0,0.00043288,120]
[405375971,1771093985363,-500.0,0.00043288,120]
[405375972,1771093985373,-493.85962872,0.00043288,120]
[405375973,1771093985382,-500.0,0.00043288,120]
[405375974,1771093985393,-500.0,0.00043288,120]
[405375975,1771093985403,-500.0,0.00043288,120]
[405375976,1771093985413,-511.23027791,0.00043288,120]
[405375977,1771093985426,-232.28204638,0.00043288,120]
[405375978,1771093985438,-500.0,0.00043288,120]
[405375979,1771093985447,-500.0,0.00043288,120]
[405375980,1771093985456,-500.0,0.00043288,120]
[405375981,1771093985466,-500.0,0.00043288,120]
[405375982,1771093985476,-500.0,0.00043288,120]
[405375983,1771093985485,-500.0,0.00043288,120]
[405375984,1771093985495,-500.0,0.00043288,120]
[405375985,1771093985505,-500.0,0.00043288,120]
[405375986,1771093985515,-500.0,0.00043288,120]
[405375987,1771093985524,-500.0,0.00043288,120]
[405375988,1771093985534,-500.0,0.00043288,120]
[405375989,1771093985542,-500.0,0.00043288,120]
[405375990,1771093985552,-500.0,0.00043288,120]
[405375991,1771093985561,-500.0,0.00043288,120]
[405375992,1771093985571,-500.0,0.00043288,120]
[405375993,1771093985580,-313.05286458,0.00043288,120]
[405375994,1771093985590,-500.0,0.00043288,120]
[405375995,1771093985600,-500.0,0.00043288,120]
[405375996,1771093985609,-500.0,0.00043288,120]
[405375997,1771093985619,-500.0,0.00043288,120]
[405375998,1771093985629,-150.0,0.00043288,120]
[405375999,1771093985639,-500.0,0.00043288,120]
[405376000,1771093985648,-150.0,0.00043288,120]
[405376001,1771093985658,-500.0,0.00043288,120]
[405376002,1771093985667,-150.0,0.00043288,120]
[405376003,1771093985677,-500.0,0.00043288,120]
[405376004,1771093985686,-150.0,0.00043288,120]
[405376005,1771093985695,-150.0,0.00043288,120]
[405376006,1771093985704,-247.27782695,0.00043288,120]
[405376007,1771093985713,-500.0,0.00043288,120]
[405376008,1771093985722,-269.41349713,0.00043288,120]
[405376009,1771093985731,-500.0,0.00043288,120]
[405376010,1771093985740,-500.0,0.00043288,120]
[405376011,1771093985749,-500.0,0.00043288,120]
[405376012,1771093985759,-500.0,0.00043288,120]
[405376013,1771093985767,-472.14467218,0.00043288,120]
[405376014,1771093985777,-150.0,0.00043288,120]
[405376015,1771093985786,-164.82312447,0.00043288,120]
[405376016,1771093985795,-500.0,0.00043288,120]
[405376017,1771093985811,-500.0,0.00043288,120]
[405376018,1771093985820,-500.0,0.00043288,120]
[405376019,1771093985830,-506.76952673,0.00043288,120]
[405376020,1771093985839,-500.0,0.00043288,120]
[405376021,1771093985848,-500.0,0.00043288,120]
[405376022,1771093985858,-500.0,0.00043288,120]
[405376023,1771093985867,-500.0,0.00043288,120]
[405376024,1771093985876,-161.36105769,0.00043288,120]
[405376025,1771093985886,-500.0,0.00043288,120]
[405376026,1771093985895,-500.0,0.00043288,120]
[405376027,1771093985904,-500.0,0.00043288,120]
[405376028,1771093985914,-500.0,0.00043288,120]
[405376029,1771093985924,-276.49152754,0.00043288,120]
[405376030,1771093985933,-500.0,0.00043288,120]
[405376031,1771093985943,-500.0,0.00043288,120]
[405376032,1771093985952,-500.0,0.00043288,120]
[405376033,1771093985961,-500.0,0.00043288,120]
[405376034,1771093985970,-500.0,0.00043288,120]
[405376035,1771093985980,-500.0,0.00043288,120]
[405376036,1771093985989,-500.0,0.00043288,120]
[405376037,1771093985999,-500.0,0.00043288,120]
[405376038,1771093986009,-500.0,0.00043288,120]
[405376039,1771093986019,-500.0,0.00043288,120]
[405376040,1771093986029,-182.95085502,0.00043288,120]
[405376041,1771093986039,-500.0,0.00043288,120]
[405376042,1771093986049,-500.0,0.00043288,120]
[405376043,1771093986059,-500.0,0.00043288,120]
[405376044,1771093986070,-500.0,0.00043288,120]
[405376045,1771093986080,-500.0,0.00043288,120]
[405376046,1771093986090,-500.0,0.00043288,120]
[405376047,1771093986102,-500.0,0.00043288,120]
[405376048,1771093986113,-200.0973125,0.00043288,120]
[405376049,1771093986122,-500.0,0.00043288,120]
[405376050,1771093986131,-500.0,0.00043288,30]
[405376051,1771093986140,-500.0,0.00043288,120]
[405376052,1771093986151,-500.0,0.00043288,30]
[405376053,1771093986161,-500.0,0.00043288,120]
[405376054,1771093986173,-500.0,0.00043288,30]
[405376055,1771093986183,-514.99841732,0.00043288,120]
[405376056,1771093986192,-500.0,0.00043288,30]
[405376057,1771093986201,-586.7145075,0.00043288,30]
[405376058,1771093986211,-150.94370157,0.00043288,120]
[405376059,1771093986220,-500.0,0.00043288,120]
[405376060,1771093986229,-500.0,0.00043288,120]
[405376061,1771093986240,-500.0,0.00043288,120]
[405376062,1771093986258,-500.0,0.00043288,120]
[405376063,1771093986272,-161.10605328,0.00043288,120]
[405376064,1771093986284,-182.99085102,0.00043288,120]
[405376065,1771093986299,-500.0,0.00043288,120]
[405376066,1771093986312,-150.0,0.00043288,120]
[405376067,1771093986329,-500.0,0.00043288,120]
[405376068,1771093986349,-150.96502665,0.00043288,120]
[405376069,1771093986362,-500.0,0.00043288,120]
[405376070,1771093986377,-500.0,0.00043288,120]
[405376071,1771093986394,-500.0,0.00043288,120]
[405376072,1771093986410,-500.0,0.00043288,120]
[405376073,1771093986429,-500.0,0.00043288,120]
[405376074,1771093986445,-500.0,0.00043288,120]
[405376075,1771093986458,-500.0,0.00043288,120]
[405376076,1771093986476,-500.0,0.00043288,120]
[405376077,1771093986492,-500.0,0.00043288,120]
[405376078,1771093986508,-500.0,0.00043288,120]
[405376079,1771093986524,-500.0,0.00043288,120]
[405376080,1771093986545,-383.34089339,0.00043288,120]
[405376081,1771093986563,-500.0,0.00043288,120]
[405376082,1771093986579,-500.0,0.00043288,120]